bitfinex/quotes_ETHUSD_20240907
["timestamp","ask_amount","ask_price","bid_price","bid_amount"]
[1725708151072,4.77623553,2293.7,2293.5,4.36014]
[1725708151274,1.5599736,2293.6,2293.5,4.36014]
[1725708151590,1.5599736,2293.6,2293.5,4.55078924]
[1725708165643,2.29236622,2293.8,2293.6,4.35995]
[1725708165951,2.1099736,2293.7,2293.6,4.35995]
[1725708173762,2.29178491,2293.9,2293.8,4.35957]
[1725708173973,1.5599736,2293.9,2293.8,4.35939]
[1725708174924,1.5599736,2293.9,2293.8,8.9090692]
[1725708175127,1.5599736,2293.9,2293.8,9.88717642]
[1725708179561,1.5599736,2293.9,2293.8,10.18537642]
[1725708179800,1.5599736,2293.9,2293.8,9.88717642]
[1725708180289,1.5599736,2293.9,2293.8,10.18537642]
[1725708180792,2.29098703,2294.3,2294.1,4.35894]
[1725708180981,2.1099736,2294.2,2294.1,4.35894]
[1725708181351,2.1099736,2294.2,2294.1,4.54858579]
[1725708182394,2.29098703,2294.4,2294.2,4.35881]
[1725708182592,2.1099736,2294.3,2294.2,4.35881]
[1725708189975,2.1099736,2294.3,2294.2,4.54832049]
[1725708195040,4.4327736,2294.3,2294.2,4.54832049]
[1725708196399,4.88960155,2294.3,2294.2,4.54832049]
[1725708197441,2.56680155,2294.3,2294.2,4.54832049]
[1725708200804,2.56680155,2294.3,2294.2,8.90713049]
[1725708205456,2.56680155,2294.3,2294.2,9.20533049]
[1725708205795,0.45682795,2294.3,2294.2,19.27940254]
[1725708206258,0.45682795,2294.3,2294.2,23.63821254]
[1725708206466,0.45682795,2294.3,2294.2,24.07591254]
[1725708207053,0.45682795,2294.3,2294.2,25.59424834]
[1725708207418,0.45682795,2294.3,2294.2,24.07591254]
[1725708209328,0.45682795,2294.3,2294.2,19.27940254]
[1725708209570,2.01680155,2294.3,2294.2,14.62239254]
[1725708209914,2.01680155,2294.3,2294.2,14.92059254]
[1725708210728,0.45682795,2294.3,2294.2,14.92059254]
[1725708214400,0.45682795,2294.3,2294.2,14.62239254]
[1725708216854,0.45682795,2294.3,2294.2,19.71710254]
[1725708217054,8.8299736,2294.9,2294.8,13.07301]
[1725708217365,1.5599736,2294.9,2294.8,13.07301]
[1725708217564,1.5599736,2294.9,2294.8,13.25551231]
[1725708217897,1.5599736,2294.9,2294.8,8.89784231]
[1725708218054,4.0405736,2294.9,2294.8,8.89784231]
[1725708219108,4.0405736,2294.9,2294.8,0.18250231]
[1725708219268,4.0405736,2294.9,2294.4,8.71661]
[1725708219269,2.4806,2294.8,2294.4,8.71661]
[1725708219587,2.4806,2294.8,2294.4,4.3583]
[1725708219588,4.0405736,2294.5,2294.4,4.3583]
[1725708219895,4.5905736,2294.5,2294.4,4.3583]
[1725708220050,4.5905736,2294.5,2294.4,4.53427475]
[1725708220253,4.5905736,2294.5,2294.4,0.17597475]
[1725708220764,2.4806,2294.4,2294.0,4.35908]
[1725708220987,4.0405736,2294.1,2294.0,8.71817]
[1725708221183,4.0405736,2294.1,2294.0,4.35908]
[1725708221373,4.5905736,2294.1,2294.0,4.35908]
[1725708224034,6.770083,2294.1,2294.0,4.35908]
[1725708226097,4.289483,2294.1,2294.0,4.35908]
[1725708226894,4.289483,2294.1,2294.0,8.71827]
[1725708228390,4.289483,2294.1,2294.0,8.88842259]
[1725708232155,6.578583,2294.1,2294.0,4.52923259]
[1725708232430,7.2364413,2294.1,2294.0,4.52923259]
[1725708232921,7.69326661,2294.1,2294.0,4.52923259]
[1725708233297,7.03540831,2294.1,2294.0,4.52923259]
[1725708246006,4.85396661,2294.1,2294.0,4.52923259]
[1725708251321,2.56486661,2294.1,2294.0,4.52923259]
[1725708253014,2.01486661,2294.1,2294.0,4.52923259]
[1725708253185,2.01486661,2294.1,2294.0,8.88842259]
[1725708262554,0.45682531,2294.1,2294.0,14.90041285]
[1725708262855,0.45682531,2294.1,2294.0,15.33811285]
[1725708263227,0.45682531,2294.1,2294.0,14.90041285]
[1725708264167,0.45682531,2294.1,2294.0,16.41904582]
[1725708264475,0.45682531,2294.1,2294.0,18.69701091]
[1725708264752,0.45682531,2294.1,2294.0,23.05620091]
[1725708264939,0.45682531,2294.1,2294.0,23.49390091]
[1725708265158,0.45682531,2294.1,2294.0,23.63054795]
[1725708265330,0.45682531,2294.1,2294.0,24.41078973]
[1725708265525,1.5580413,2294.5,2294.4,13.07529]
[1725708265764,1.5580413,2294.5,2294.4,15.11687]
[1725708265928,1.5580413,2294.5,2294.4,15.28768671]
[1725708270868,9.28476081,2294.7,2294.6,13.07415]
[1725708271030,2.01476081,2294.7,2294.6,13.37235]
[1725708271234,2.01476081,2294.7,2294.6,15.5073939]
[1725708271882,2.01476081,2294.7,2294.6,15.2091939]
[1725708279063,1.5580413,2294.7,2294.6,15.2091939]
[1725708279978,2.4127,2295.1,2295.0,8.71458]
[1725708280181,3.9707413,2295.1,2295.0,8.71458]
[1725708280336,3.9707413,2295.1,2295.0,8.88447044]
[1725708285990,4.5207413,2295.1,2295.0,4.52718044]
[1725708286155,4.96348529,2295.1,2295.0,4.52718044]
[1725708288610,2.4127,2295.0,2294.6,4.35792]
[1725708288783,2.55078529,2295.1,2294.6,4.35792]
[1725708288784,1.5580413,2294.7,2294.6,4.35792]
[1725708289082,4.5207413,2294.7,2294.6,4.35792]
[1725708289404,4.5207413,2294.7,2294.6,8.71597]
[1725708289693,10.13939857,2295.3,2295.2,4.35691]
[1725708289860,4.42743987,2295.3,2295.2,4.35691]
[1725708290878,4.42743987,2295.3,2295.1,4.35704]
[1725708291091,4.42743987,2295.3,2295.0,4.35729]
[1725708291092,2.4127,2295.2,2295.0,4.35729]
[1725708291246,1.5580413,2295.1,2295.0,4.35729]
[1725708291449,1.5580413,2295.1,2294.9,8.71475]
[1725708291450,4.77721529,2295.1,2294.9,8.71475]
[1725708291684,0.55,2295.0,2294.9,8.71475]
[1725708296208,0.55,2295.0,2294.9,8.87877799]
[1725708299819,0.55,2295.0,2294.9,4.52137799]
[1725708299990,1.02772153,2295.0,2294.9,4.52137799]
[1725708301231,1.02772153,2295.0,2294.9,8.87885799]
[1725708301396,4.22721529,2295.1,2295.0,4.35729]
[1725708301397,3.9707413,2295.1,2295.0,4.35729]
[1725708301596,4.5207413,2295.1,2295.0,4.35729]
[1725708301910,4.5207413,2295.1,2295.0,4.52139313]
[1725708302325,2.1080413,2295.1,2295.0,4.52139313]
[1725708302498,2.3658,2295.2,2295.1,8.7142]
[1725708302697,3.9238413,2295.2,2295.1,8.87829222]
[1725708303791,1.5580413,2295.2,2295.1,8.87829222]
[1725708307529,5.14076665,2295.2,2295.1,0.16409222]
[1725708307715,6.76255495,2295.2,2295.1,0.16409222]
[1725708308240,2.3658,2295.1,2294.6,4.35793]
[1725708308543,3.9238413,2294.7,2294.6,4.35793]
[1725708308911,4.4738413,2294.7,2294.6,4.35793]
[1725708309444,0.45669109,2295.0,2294.9,4.35748]
[1725708309642,2.56473239,2295.0,2294.9,4.35748]
[1725708310030,2.56473239,2295.0,2294.9,4.51628683]
[1725708312440,0.45669109,2295.0,2294.9,8.87376683]
[1725708312598,2.01473239,2295.0,2294.9,8.87376683]
[1725708322264,4.62174694,2295.5,2295.0,4.35714]
[1725708322572,4.62174694,2295.5,2295.4,4.35653]
[1725708322868,5.07813688,2295.5,2295.4,4.35653]
[1725708323042,5.07813688,2295.5,2295.4,4.51468952]
[1725708323429,2.78608994,2295.5,2295.4,4.51468952]
[1725708323929,3.33608994,2295.5,2295.4,4.51468952]
[1725708324525,5.62813688,2295.5,2295.4,4.51468952]
[1725708324832,3.33608994,2295.5,2295.4,4.51448878]
[1725708325176,2.56443124,2295.5,2295.4,4.51448878]
[1725708326140,7.904796,2295.5,2295.4,0.15795878]
[1725708326476,2.3297,2295.4,2295.1,4.35704]
[1725708326681,1.5580413,2295.2,2295.1,4.35704]
[1725708327027,2.1080413,2295.2,2295.1,4.35704]
[1725708331568,2.1080413,2295.2,2295.0,4.35729]
[1725708332431,2.3185,2295.1,2295.0,8.71458]
[1725708332668,2.3185,2295.1,2294.7,0.2982]
[1725708332669,2.99025294,2295.1,2294.7,4.35777]
[1725708332872,2.99025294,2295.1,2294.6,4.35799]
[1725708332873,1.5580413,2294.8,2294.6,4.35799]
[1725708333071,3.8765413,2294.7,2294.6,4.35799]
[1725708337175,4.4265413,2294.7,2294.6,4.35799]
[1725708338751,2.1080413,2294.7,2294.6,4.35799]
[1725708339967,2.1080413,2294.7,2294.6,4.51661925]
[1725708346280,2.5963419,2294.7,2294.6,4.51661925]
[1725708347160,4.4265413,2294.7,2294.6,4.51661925]
[1725708347363,4.4265413,2294.7,2294.6,0.15862925]
[1725708347562,4.4265413,2294.7,2294.3,4.35846]
[1725708347563,2.3185,2294.6,2294.3,4.35846]
[1725708347860,1.5580413,2294.4,2294.3,4.35846]
[1725708348295,2.1080413,2294.4,2294.3,4.35846]
[1725708348476,5.1080413,2294.4,2294.3,4.35846]
[1725708348678,2.1080413,2294.4,2294.3,4.35846]
[1725708354588,2.1080413,2294.4,2294.3,8.71708]
[1725708354963,2.1080413,2294.4,2294.3,8.87616272]
[1725708354964,0.55,2294.4,2294.3,8.87616272]
[1725708355169,5.322,2294.8,2294.6,4.35795]
[1725708355387,1.5580413,2294.7,2294.6,4.35795]
[1725708355715,4.5580413,2294.7,2294.6,8.716]
[1725708355872,1.5580413,2294.7,2294.6,8.716]
[1725708356775,2.1080413,2294.7,2294.6,8.716]
[1725708357504,2.56453651,2294.7,2294.6,8.716]
[1725708357708,5.56453651,2294.7,2294.6,8.716]
[1725708358309,5.56453651,2294.7,2294.6,9.61742]
[1725708358310,0.45649521,2294.7,2294.6,9.61742]
[1725708358475,2.01453651,2294.7,2294.6,14.27367]
[1725708360276,1.5580413,2294.7,2294.6,14.27367]
[1725708361272,1.5580413,2294.7,2294.6,13.37225]
[1725708364665,3.45650235,2295.1,2294.9,4.35741]
[1725708364914,2.1080413,2295.0,2294.9,4.35741]
[1725708369975,2.1080413,2295.0,2294.9,4.51578657]
[1725708370981,5.1080413,2295.0,2294.9,0.15837657]
[1725708371317,7.98649567,2295.0,2294.9,0.15841481]
[1725708371615,7.98649567,2295.0,2294.7,4.35774]
[1725708371821,1.5580413,2294.8,2294.7,4.35774]
[1725708372006,2.1080413,2294.8,2294.7,4.35774]
[1725708372679,5.87845437,2295.0,2294.9,4.35748]
[1725708372875,7.98649567,2295.0,2294.9,4.35748]
[1725708376504,7.4300413,2295.0,2294.9,4.35748]
[1725708377579,7.4300413,2295.0,2294.8,4.35763]
[1725708377897,0.55,2294.9,2294.8,4.35763]
[1725708379320,0.55,2294.9,2294.7,4.35775]
[1725708379489,1.5580413,2294.8,2294.7,4.35775]
[1725708379694,2.1080413,2294.8,2294.7,4.35775]
[1725708381905,2.1080413,2294.8,2294.6,4.35805]
[1725708381906,5.21769217,2294.8,2294.6,4.35805]
[1725708382107,0.55,2294.7,2294.6,4.35805]
[1725708382682,0.55,2294.7,2294.4,4.35825]
[1725708382886,1.5580413,2294.5,2294.4,8.71668]
[1725708383110,2.1080413,2294.5,2294.4,8.71668]
[1725708384927,2.1080413,2294.5,2294.4,8.87520673]
[1725708387027,2.1080413,2294.5,2294.4,0.15852673]
[1725708387190,4.4290413,2294.5,2294.4,0.15852673]
[1725708387527,5.10099976,2294.5,2294.4,0.15852673]
[1725708387730,5.10099976,2294.5,2294.3,4.95861]
[1725708387936,0.55,2294.4,2294.3,4.95861]
[1725708388989,0.55,2294.4,2294.3,5.11762578]
[1725708396250,1.5580413,2294.5,2294.4,8.71686]
[1725708396550,1.5580413,2294.5,2294.4,10.28812645]
[1725708401113,5.11878433,2294.9,2294.6,4.3579]
[1725708401313,1.5580413,2294.7,2294.6,4.3579]
[1725708401539,2.1080413,2294.7,2294.6,4.3579]
[1725708404427,2.3723,2294.6,2294.4,4.35841]
[1725708404605,2.3723,2294.6,2294.3,0.6]
[1725708404606,2.3723,2294.4,2294.3,0.6]
[1725708405095,2.9223,2294.4,2294.3,0.6]
[1725708414677,7.21084658,2294.4,2294.3,0.6]
[1725708415063,7.21084658,2294.4,2294.3,0.74708209]
[1725708415278,8.46458142,2294.4,2294.3,0.74708209]
[1725708415480,8.46458142,2294.4,2294.3,0.6]
[1725708416470,6.17603484,2294.4,2294.3,0.6]
[1725708416700,8.46428252,2294.4,2294.3,0.6]
[1725708418293,2.3837,2294.3,2293.8,4.35957]
[1725708418463,1.5580413,2293.9,2293.8,4.35957]
[1725708418858,1.5580413,2293.9,2293.6,4.35984]
[1725708418859,2.1080413,2293.9,2293.7,4.35976]
[1725708419061,2.1080413,2293.8,2293.7,4.35976]
[1725708420301,2.3837,2293.7,2293.5,4.36002]
[1725708420463,1.5580413,2293.6,2293.4,4.36031]
[1725708420797,2.3837,2293.7,2293.4,4.36031]
[1725708420798,2.1080413,2293.5,2293.4,4.36031]
[1725708421002,2.1080413,2293.5,2293.3,4.36038]
[1725708421160,2.1080413,2293.5,2293.3,8.72082]
[1725708421561,2.1080413,2293.5,2293.4,4.36033]
[1725708423463,6.67167495,2294.1,2293.4,1.170271]
[1725708423690,4.3837,2294.1,2293.7,4.35959]
[1725708423933,1.5580413,2293.8,2293.7,4.35959]
[1725708424804,1.5580413,2293.8,2293.7,9.01755]
[1725708425025,1.5580413,2293.8,2293.7,10.355319]
[1725708429353,1.5580413,2293.8,2293.7,9.01755]
[1725708430025,1.5580413,2293.8,2293.7,9.16633918]
[1725708436682,1.5580413,2293.8,2293.7,8.86813918]
[1725708437951,1.5580413,2293.8,2293.7,4.50837918]
[1725708438152,2.1080413,2293.8,2293.7,4.50837918]
[1725708438479,2.56150543,2293.8,2293.7,4.50837918]
[1725708439174,2.1080413,2293.8,2293.7,4.50837918]
[1725708442977,2.1080413,2293.8,2293.7,8.86813918]
[1725708443908,2.1080413,2293.8,2293.7,4.50837918]
[1725708444171,0.55,2293.8,2293.7,8.86813918]
[1725708444396,2.4266,2294.3,2294.0,4.35919]
[1725708444621,1.5580413,2294.1,2294.0,4.35919]
[1725708444778,2.1080413,2294.1,2294.0,4.35919]
[1725708445300,2.1080413,2294.1,2294.0,4.50797506]
[1725708445506,2.56150543,2294.1,2294.0,4.50797506]
[1725708454084,0.55,2294.1,2294.0,8.86716506]
[1725708454286,1.5580413,2294.1,2294.0,8.86716506]
[1725708454509,2.1080413,2294.1,2294.0,8.86716506]
[1725708456334,2.56460179,2294.1,2294.0,8.86716506]
[1725708463327,2.56460179,2294.1,2294.0,4.50797506]
[1725708478490,5.05000179,2294.1,2294.0,0.14878506]
[1725708478777,7.82650084,2294.1,2294.0,0.14878506]
[1725708480084,7.82650084,2294.1,2293.8,4.35955]
[1725708480297,1.5580413,2293.9,2293.8,4.35955]
[1725708480672,2.1080413,2293.9,2293.8,4.35955]
[1725708489883,2.1080413,2293.9,2293.8,4.50774552]
[1725708492615,2.1080413,2293.9,2293.8,0.14819552]
[1725708492830,2.1080413,2293.9,2293.8,4.50776552]
[1725708494678,2.1080413,2293.9,2293.8,0.14819552]
[1725708495910,2.1080413,2293.9,2293.8,4.50776552]
[1725708501935,2.1080413,2293.9,2293.8,4.80596552]
[1725708502825,1.5580413,2293.9,2293.8,9.16553552]
[1725708503209,0.45656049,2294.1,2293.8,9.16553552]
[1725708503210,3.45656049,2294.1,2294.0,4.35919]
[1725708503395,5.56460179,2294.1,2294.0,8.71838]
[1725708503790,5.56460179,2294.1,2294.0,8.86172196]
[1725708506809,5.56460179,2294.1,2294.0,4.50253196]
[1725708507408,5.56460179,2294.1,2294.0,9.2471014]
[1725708507409,0.45656049,2294.1,2294.0,9.2471014]
[1725708507607,0.45656049,2294.1,2294.0,11.69061672]
[1725708507841,0.45656049,2294.1,2294.0,16.04980672]
[1725708508014,0.45656049,2294.1,2294.0,18.32790351]
[1725708509404,0.45656049,2294.1,2294.0,16.04980672]
[1725708510432,0.45656049,2294.1,2294.0,16.04973572]
[1725708510942,0.45656049,2294.1,2294.0,10.0846321]
[1725708511247,2.01460179,2294.1,2294.0,10.0846321]
[1725708511740,2.01460179,2294.1,2294.0,9.7864321]
[1725708518855,2.01460179,2294.1,2294.0,10.0846321]
[1725708521658,2.01460179,2294.1,2294.0,9.7864321]
[1725708526569,2.01460179,2294.1,2294.0,8.86172196]
[1725708531341,0.45656049,2294.1,2294.0,9.15992196]
[1725708539650,0.45656049,2294.1,2294.0,8.86172196]
[1725708540257,5.00670179,2294.1,2294.0,0.14334196]
[1725708540456,5.50737197,2294.1,2294.0,0.14334196]
[1725708540668,3.06527197,2294.1,2293.7,4.3596]
[1725708540855,2.4421,2293.8,2293.7,4.3596]
[1725708541565,2.89857229,2293.8,2293.7,4.3596]
[1725708544003,0.45647229,2293.8,2293.7,8.71936]
[1725708544152,2.01451359,2293.8,2293.7,9.591296]
[1725708544657,0.45647229,2293.8,2293.7,14.249256]
[1725708545775,0.45647229,2293.8,2293.7,18.04638436]
[1725708545983,0.45647229,2293.8,2293.7,27.68279318]
[1725708546171,7.27,2294.4,2294.3,9.01544]
[1725708546463,1.5580413,2294.6,2294.5,8.71648]
[1725708549991,1.5580413,2294.6,2294.5,8.85849788]
[1725708558302,1.5580413,2294.6,2294.5,13.21673788]
[1725708559512,0.45636863,2294.7,2294.6,13.07415]
[1725708559712,2.01440993,2294.7,2294.6,13.21560354]
[1725708559916,2.01440993,2294.7,2294.6,14.53716389]
[1725708564879,2.01440993,2294.7,2294.6,10.17911389]
[1725708565078,2.01440993,2294.7,2294.6,8.85755354]
[1725708567083,2.01440993,2294.7,2294.6,13.21560354]
[1725708567280,2.01440993,2294.7,2294.6,13.51380354]
[1725708568090,2.01440993,2294.7,2294.6,13.21560354]
[1725708573296,0.45636863,2294.7,2294.6,13.21560354]
[1725708573503,0.45636863,2294.7,2294.6,15.27119989]
[1725708576316,1.5580413,2294.9,2294.8,8.71534]
[1725708576609,1.5580413,2294.9,2294.8,8.85646646]
[1725708580702,2.411,2295.2,2294.8,0.14112646]
[1725708580900,7.27,2295.3,2295.2,8.71382]
[1725708581105,9.3780413,2295.3,2295.2,8.71382]
[1725708581337,9.3780413,2295.3,2295.2,8.85446839]
[1725708582448,2.1080413,2295.3,2295.2,8.85446839]
[1725708586369,2.56435396,2295.3,2295.2,8.85446839]
[1725708603075,2.3699,2295.2,2294.8,4.35765]
[1725708603282,2.3699,2295.1,2294.6,4.35802]
[1725708603608,2.82621266,2295.3,2295.1,4.3571]
[1725708604510,2.3699,2295.1,2294.9,4.35731]
[1725708604716,2.1080413,2295.0,2294.9,4.35731]
[1725708605026,2.3699,2294.9,2294.7,4.35773]
[1725708605168,1.5580413,2294.8,2294.7,4.35773]
[1725708605368,4.4779413,2294.8,2294.7,4.35773]
[1725708605701,4.4779413,2294.8,2294.6,4.35803]
[1725708606000,3.9279413,2294.7,2294.6,4.35803]
[1725708606305,4.4779413,2294.7,2294.6,4.35803]
[1725708611219,2.3699,2294.9,2294.8,4.3576]
[1725708611511,4.4779413,2294.9,2294.8,4.3576]
[1725708615113,0.45637666,2295.0,2294.9,4.35748]
[1725708615295,2.01441796,2295.0,2294.9,4.823048]
[1725708616117,2.01441796,2295.0,2294.9,9.180528]
[1725708616674,1.5580413,2295.0,2294.9,9.180528]
[1725708617571,1.5580413,2295.0,2294.9,9.29766581]
[1725708617967,11.95261089,2295.5,2295.3,4.35672]
[1725708618171,2.1080413,2295.4,2295.1,4.35694]
[1725708618406,1.5580413,2295.2,2295.1,4.35694]
[1725708618606,1.5580413,2295.2,2295.1,8.71404]
[1725708619340,0.55,2295.4,2295.3,4.35672]
[1725708619619,0.55,2295.4,2295.0,0.2982]
[1725708619620,2.3932,2295.7,2295.5,4.35634]
[1725708619916,2.3932,2295.7,2295.4,8.71295]
[1725708619917,1.5580413,2295.6,2295.4,8.71295]
[1725708620812,1.5580413,2295.6,2295.5,4.35634]
[1725708623292,2.3932,2295.5,2295.2,4.35677]
[1725708623615,1.5580413,2295.3,2295.2,4.35677]
[1725708624177,2.83919605,2295.6,2295.5,4.35634]
[1725708624397,1.5580413,2295.6,2295.5,4.35634]
[1725708627311,4.5580413,2295.6,2295.5,4.35634]
[1725708627718,4.5580413,2295.6,2295.5,4.47294603]
[1725708628451,1.5580413,2295.6,2295.5,4.47294603]
[1725708628654,4.5580413,2295.6,2295.5,4.47294603]
[1725708629162,1.5580413,2295.6,2295.5,4.47294603]
[1725708632465,3.0,2295.7,2295.6,4.35615]
[1725708632612,2.2878902,2295.9,2295.6,0.99920976]
[1725708632810,1.5580413,2295.7,2295.6,4.35606]
[1725708633011,1.5580413,2295.7,2295.6,4.47216988]
[1725708636963,1.5580413,2295.7,2295.6,8.82831988]
[1725708637553,3.9404413,2295.7,2295.6,0.11610988]
[1725708637859,3.9404413,2295.7,2295.0,4.35718]
[1725708637860,2.3824,2295.6,2295.0,4.35718]
[1725708638097,2.3824,2295.6,2294.5,0.2982]
[1725708638098,2.3824,2295.0,2294.9,4.35748]
[1725708638361,3.9404413,2295.0,2294.9,4.35748]
[1725708638722,1.5580413,2295.0,2294.9,4.35748]
[1725708640339,1.5580413,2295.0,2294.9,8.71496]
[1725708641566,1.5580413,2295.0,2294.9,4.35748]
[1725708641718,2.1080413,2295.0,2294.9,4.35748]
[1725708642351,1.5580413,2295.0,2294.9,9.67362323]
[1725708642535,1.5580413,2295.0,2294.9,9.884675]
[1725708645369,1.5580413,2295.0,2294.9,9.9928352]
[1725708646342,2.0145004,2295.0,2294.9,9.9928352]
[1725708647542,2.0145004,2295.0,2294.9,9.6946352]
[1725708647743,2.0145004,2295.0,2294.9,8.8231202]
[1725708649875,2.0145004,2295.0,2294.9,9.1213202]
[1725708651280,0.4564591,2295.0,2294.9,13.4788002]
[1725708655596,0.4564591,2295.0,2294.9,14.99683287]
[1725708655799,0.4564591,2295.0,2294.9,13.4788002]
[1725708655984,0.4564591,2295.0,2294.9,15.78969324]
[1725708657170,0.4564591,2295.0,2294.9,13.1806002]
[1725708657502,0.4564591,2295.0,2294.9,8.8231202]
[1725708657703,2.0145004,2295.0,2294.9,8.8231202]
[1725708660810,0.4564591,2295.0,2294.9,13.1806002]
[1725708660965,0.4564591,2295.0,2294.9,8.8231202]
[1725708661164,0.4564591,2295.0,2294.9,10.39871885]
[1725708663398,0.4564591,2295.0,2294.9,14.75619885]
[1725708663803,0.4564591,2295.0,2294.9,16.27427449]
[1725708663966,0.4564591,2295.0,2294.9,14.75619885]
[1725708664511,0.4564591,2295.0,2294.9,16.27427572]
[1725708664814,9.1e-06,2295.0,2294.9,32.51929877]
[1725708665108,6.72633737,2295.6,2295.5,13.06902]
[1725708665266,0.45633737,2295.6,2295.5,14.405742]
[1725708665465,0.45633737,2295.6,2295.5,14.5139503]
[1725708676837,0.45633737,2295.6,2295.5,8.8208883]
[1725708682250,3.46553737,2295.6,2295.5,0.1082083]
[1725708682954,3.46553737,2295.6,2295.4,4.35645]
[1725708683137,1.5580413,2295.5,2295.4,4.35645]
[1725708685838,2.06039917,2295.5,2295.3,4.35672]
[1725708686143,2.4592,2295.4,2294.6,0.7358]
[1725708686395,2.06039917,2295.5,2294.6,4.35805]
[1725708686396,1.5580413,2294.7,2294.6,4.35805]
[1725708686661,2.8093,2294.6,2294.5,4.35813]
[1725708688150,6.54687205,2294.6,2294.5,4.35813]
[1725708688364,0.3501,2294.6,2294.5,8.80353166]
[1725708688665,0.3501,2294.6,2294.5,13.16177166]
[1725708688862,0.3501,2294.6,2294.5,14.50776883]
[1725708690770,0.3501,2294.6,2294.5,14.61551651]
[1725708692078,6.19677205,2295.1,2295.0,4.35729]
[1725708692378,6.19677205,2295.1,2295.0,4.46498312]
[1725708693447,6.19677205,2295.1,2295.0,8.82227312]
[1725708693846,3.73757205,2295.1,2295.0,8.82227312]
[1725708694049,3.73757205,2295.1,2295.0,10.14025843]
[1725708696236,3.73757205,2295.1,2295.0,8.82227312]
[1725708698178,6.00617205,2295.1,2295.0,0.10769312]
[1725708698879,6.55617205,2295.1,2295.0,0.10769312]
[1725708699195,6.55617205,2295.1,2294.8,4.35766]
[1725708699355,3.73757205,2294.9,2294.8,4.35766]
[1725708701849,4.28757205,2294.9,2294.7,4.35774]
[1725708702042,3.73757205,2294.9,2294.7,4.35774]
[1725708702245,0.55,2294.8,2294.7,4.31398146]
[1725708705576,0.55,2294.8,2294.7,4.42221071]
[1725708706333,2.8186,2294.8,2294.7,4.42221071]
[1725708707575,3.47421721,2294.8,2294.7,4.42221071]
[1725708707775,3.47421721,2294.8,2294.7,0.10822925]
[1725708708017,4.08318075,2294.8,2294.7,0.10822925]
[1725708708185,4.08318075,2294.8,2294.3,4.35852]
[1725708708186,2.2686,2294.7,2294.3,4.35852]
[1725708708391,1.81458075,2294.8,2294.3,4.35852]
[1725708708392,6.00617205,2294.4,2294.3,4.35852]
[1725708710817,3.73757205,2294.4,2294.3,8.71714]
[1725708712513,3.73757205,2294.4,2294.3,8.67337247]
[1725708713934,3.73757205,2294.4,2294.3,4.31475247]
[1725708715626,3.73757205,2294.4,2294.2,4.35875]
[1725708716035,2.3755,2294.3,2294.0,4.35908]
[1725708716255,3.73757205,2294.1,2294.0,4.35908]
[1725708718547,3.73757205,2294.1,2294.0,8.71827]
[1725708720712,3.73757205,2294.1,2294.0,8.8285232]
[1725708721914,3.73757205,2294.1,2294.0,4.4693332]
[1725708722353,6.48682926,2294.1,2294.0,0.10879416]
[1725708722520,7.03682926,2294.1,2294.0,0.10879416]
[1725708725351,6.66307205,2294.1,2294.0,0.10879416]
[1725708725818,6.66307205,2294.1,2294.0,4.46798416]
[1725708726021,3.73757205,2294.1,2294.0,4.46798416]
[1725708726234,3.73757205,2294.1,2294.0,8.82717416]
[1725708732265,3.73757205,2294.1,2294.0,8.78340785]
[1725708732578,3.73757205,2294.1,2294.0,8.82606702]
[1725708732759,3.73757205,2294.1,2294.0,10.17442972]
[1725708733470,3.73757205,2294.4,2294.1,4.35896]
[1725708733781,3.73757205,2294.4,2294.2,0.10766519]
[1725708734441,3.73757205,2294.4,2294.3,8.71724]
[1725708734635,6.73757205,2294.4,2294.3,8.71724]
[1725708734833,6.73757205,2294.4,2294.3,0.10758773]
[1725708734834,7.64808926,2294.4,2294.3,0.10758773]
[1725708735182,13.1746528,2294.4,2294.3,0.10758773]
[1725708735477,9.43708075,2294.4,2294.3,0.10758773]
[1725708735686,9.43708075,2294.4,2293.7,4.35958]
[1725708735687,2.3676,2294.3,2293.7,4.35958]
[1725708735968,2.3676,2294.2,2293.7,8.71925]
[1725708736146,3.73757205,2293.8,2293.7,4.35958]
[1725708736934,4.28757205,2293.8,2293.6,4.35993]
[1725708737275,2.3676,2293.7,2293.6,4.35993]
[1725708737432,2.3676,2293.7,2293.5,4.36013]
[1725708737634,3.73757205,2293.6,2293.5,4.36013]
[1725708738185,4.40308926,2293.6,2293.2,4.36062]
[1725708738362,3.73757205,2293.3,2293.2,8.72117]
[1725708739089,3.73757205,2293.3,2293.2,4.36057]
[1725708740038,3.73757205,2293.3,2293.2,4.46512903]
[1725708742470,3.73757205,2293.3,2293.2,4.4213456]
[1725708742772,4.40308926,2293.3,2293.2,0.10455903]
[1725708743404,10.32068926,2293.3,2292.9,4.36114]
[1725708743572,3.73757205,2293.0,2292.9,4.36114]
[1725708745501,3.73757205,2293.0,2292.8,4.36143]
[1725708745502,6.10517205,2293.0,2292.8,4.36143]
[1725708745801,6.69979151,2293.0,2292.8,8.72281]
[1725708745961,6.69979151,2293.0,2292.8,4.36138]
[1725708746958,6.69979151,2293.0,2292.8,8.72275]
[1725708747205,6.69979151,2293.0,2292.8,4.36137]
[1725708747874,6.69979151,2293.0,2292.8,8.72275]
[1725708750066,3.73757205,2293.0,2292.9,4.36128]
[1725708750414,4.28757205,2293.0,2292.9,4.36128]
[1725708750612,4.28757205,2293.0,2292.9,4.46587182]
[1725708755286,4.28757205,2293.0,2292.9,8.82715182]
[1725708756391,3.73757205,2293.2,2293.1,4.36085]
[1725708756719,3.73757205,2293.2,2293.1,4.46600983]
[1725708758116,3.73757205,2293.2,2293.1,8.82690983]
[1725708761980,3.60661172,2293.3,2293.2,4.36071]
[1725708762180,5.7157663,2293.3,2293.2,4.46700017]
[1725708763583,5.7157663,2293.3,2293.2,0.10629017]
[1725708764489,8.1163663,2293.3,2293.2,0.10629017]
[1725708765327,2.4006,2293.2,2292.8,4.36146]
[1725708765638,1.55915458,2292.9,2292.8,4.36146]
[1725708772231,2.10915458,2292.9,2292.8,4.36146]
[1725708778343,4.60715458,2292.9,2292.8,4.36146]
[1725708780854,4.60715458,2292.9,2292.8,4.46782241]
[1725708782404,3.30963663,2293.1,2292.8,4.46783241]
[1725708782702,3.0,2293.3,2293.2,4.36071]
[1725708782851,4.55915458,2293.3,2293.2,4.36071]
[1725708783055,4.55915458,2293.3,2293.2,4.46728565]
[1725708783056,1.55915458,2293.3,2293.2,4.46728565]
[1725708783665,1.55915458,2293.3,2293.2,8.82799565]
[1725708783866,4.44143716,2293.3,2293.2,4.46728565]
[1725708784077,5.0504007,2293.3,2293.2,0.10657565]
[1725708784455,5.0504007,2293.3,2293.0,8.72196]